Cogmind - Beta 11 X8 --- EXPLORER MODE // 2021.10.27 @ 14:17:31 // Winter2019/RPGLIKE Player: jfk Result: Self-destructed Performance ------------- Evolutions (2) 1000 Regions Visited (3) 600 Robots Destroyed (2) 10 Value Destroyed (20) 20 Prototype IDs (0) 0 Alien Tech Used (0) 0 Bonus (470) 470 TOTAL SCORE: 2100 Bonus ------- Pacifist 470 Cogmind --------- Core Integrity 138/600 Matter 108/300 Energy 100/100 System Corruption 0% Temperature Cool (0) Movement Core (100) Ox1 Location -8/Materials Parts ------- > --- POWER (1) -------- (None) > --- PROPULSION (1) --- (None) > --- UTILITY (1) ------ (None) > --- WEAPON (1) ------- Heavy Laser > --- INVENTORY (0) ---- (None) Peak State ------------ > --- POWER ------------ (None) > --- PROPULSION ------- Flight Unit > --- UTILITY ---------- (None) > --- WEAPON ----------- Heavy Laser > --- INVENTORY -------- (None) [Rating: 5] Favorites ----------- Power None Propulsion Flight Unit Flight Unit Flight Unit Utility None Weapon Datajack Energy Gun Heavy Laser Special Melee Weapon Datajack Build | -11 -10 -9 -8 ------- Run | Scr Mat Mat Mat Slots Evolved . | . . . . Power . | . . . . Propulsion . | . . . . Utility . | . . . . Weapon . | . . . . Parts Attached 3 | . 2 . 1 Power . | . . . . Engine . | . . . . Core . | . . . . Reactor . | . . . . Propulsion 1 | . 1 . . Treads . | . . . . Leg . | . . . . Wheel . | . . . . Hover . | . . . . Flight 1 | . 1 . . Utility . | . . . . Device . | . . . . Storage . | . . . . Processor . | . . . . Hackware . | . . . . Protection . | . . . . Artifact . | . . . . Weapon 2 | . 1 . 1 Energy Gun 1 | . . . 1 Energy Cannon . | . . . . Ballistic Gun . | . . . . Ballistic Cannon . | . . . . Launcher . | . . . . Special Weapon . | . . . . Impact Weapon . | . . . . Slashing Weapon . | . . . . Piercing Weapon . | . . . . Special Melee Weapon 1 | . 1 . . Unidentified Prototypes . | . . . . Parts Lost 2 | . . 1 1 Power . | . . . . Propulsion 1 | . . . 1 Utility . | . . . . Weapon 1 | . . 1 . Highest Loss Streak 1 | . . 1 1 Average Slot Usage (%) 34 | . 20 42 40 Flight 16 | . 2 25 21 Energy Gun 7 | . . . 19 Special Melee Weapon 11 | . 18 17 . Naked Turns 33 | . 33 . . Heaviest Build 4 | . 1 1 4 Greatest Support 4 | 3 4 4 4 Greatest Overweight (x) 1 | . . . 1 Average Overweight (x) . | . . . . Largest Inventory Capacity . | . . . . Average Capacity . | . . . . Most Carried . | . . . . Average Carried . | . . . . Final Capacity . | . . . . Final Carried . | . . . . Class Distribution -------------------- 100% | Hacker-Mutant Dominant Class ---------------- Hacker-Mutant | -10/Materials Hacker-Mutant | -9/Materials Hacker-Mutant | -8/Materials Resources | -11 -10 -9 -8 ----------- Run | Scr Mat Mat Mat Matter Collected 21 | . . . 21 Remotely . | . . . . Salvage Created 21 | . . . 21 Parts 3 | . . . 3 Haulers Intercepted . | . . . . Recyclers Shooed . | . . . . Parts Field Recycled . | . . . . Retrieved Matter . | . . . . Parts Self-Destructed . | . . . . Prevented . | . . . . Kills | -11 -10 -9 -8 ------- Run | Scr Mat Mat Mat Combat Hostiles Destroyed 2 | . . . 2 Guns 2 | . . . 2 Classes Destroyed 1 | . . . 1 Swarmer 2 | . . . 2 Best Kill Streak 2 | . . . 2 Combat Bots Only 2 | . . . 2 Max Kills in Single Turn 1 | . . . 1 Gunslinging . | . . . . Exploded . | . . . . Melee . | . . . . Uniques/NPCs Destroyed . | . . . . Combat | -11 -10 -9 -8 -------- Run | Scr Mat Mat Mat Damage Taken 518 | . 85 195 238 Core 462 | . 81 181 200 Absorbed by Shields . | . . . . Redirected to Core 168 | . 12 39 117 Core Remaining (%) 80 | 100 86 56 . Volleys Fired 5 | . . . 5 Largest 1 | . . . 1 Hottest 69 | . . . 69 Shots Fired 5 | . . . 5 Gun 5 | . . . 5 Cannon . | . . . . Launcher . | . . . . Special . | . . . . Kinetic . | . . . . Thermal 5 | . . . 5 Explosive . | . . . . Electromagnetic . | . . . . Robot Hit Streak 3 | . . . 3 Robot Miss Streak 2 | . . . 2 Penetration Max . | . . . . Secondary Targets . | . . . . Shots Hit Robots 6 | . 3 . 3 Core Hits 2 | . . . 2 Critical Kills . | . . . . Critical Parts Destroyed . | . . . . Critical Strikes 1 | . . . 1 Burn 1 | . . . 1 Melee Attacks 4 | . 4 . . Impact . | . . . . Slashing . | . . . . Piercing . | . . . . Sneak Attacks 2 | . 2 . . Combat Hostiles . | . . . . Follow-up Attacks . | . . . . Damage Inflicted 60 | . . . 60 Guns 57 | . . . 57 Cannons . | . . . . Explosions . | . . . . Melee . | . . . . Ramming 3 | . . . 3 Kinetic . | . . . . Thermal 57 | . . . 57 Explosive . | . . . . Electromagnetic . | . . . . Impact . | . . . . Slashing . | . . . . Piercing . | . . . . Highest Corruption . | . . . . Average Corruption . | . . . . Corruption Purged . | . . . . Overload Shots . | . . . . Overflow Damage . | . . . . Projectiles . | . . . . Explosions . | . . . . Melee . | . . . . Knockbacks . | . . . . Impact . | . . . . Kinetic . | . . . . Secondary . | . . . . Self-Inflicted Damage 1 | . . . 1 Shots . | . . . . Rammed 2 | . . . 2 Targets Rammed 2 | . . . 2 Kicked . | . . . . Crushed . | . . . . Highest Temperature 102 | . . . 102 Average Temperature 54 | . . . 54 Received Heat Transfer 72 | . . 45 27 Siege Activations . | . . . . Robots Corrupted . | . . . . Combat Hostiles . | . . . . Parts Fried . | . . . . Impact Corruptions . | . . . . Robots Melted . | . . . . Combat Hostiles . | . . . . Parts Melted . | . . . . Heat Transferred 185 | . . . 185 Parts Sabotaged . | . . . . Parts Stolen . | . . . . Parts Stripped . | . . . . Power Chain Reactions . | . . . . Missiles Intercepted . | . . . . Alert | -11 -10 -9 -8 ------- Run | Scr Mat Mat Mat Peak Influence 310 | . 42 144 310 Initial 43 | . . 12 43 Average 88 | . 17 57 180 Maximum Alert Level 1 | . . . 1 Low Security (%) 81 | 100 100 100 51 Level 1 18 | . . . 48 Level 2 . | . . . . Level 3 . | . . . . Level 4 . | . . . . Level 5 . | . . . . High Security . | . . . . Max Security . | . . . . Squads Dispatched 6 | . 1 3 2 Investigation 1 | . 1 . . Extermination . | . . . . Reinforcement 5 | . . 3 2 Assault . | . . . . Garrison . | . . . . Intercept . | . . . . Construction Impeded . | . . . . Haulers Reinforced . | . . . . Active Scanning Responses . | . . . . Cargo Convoy Interrupts . | . . . . Stealth | -11 -10 -9 -8 --------- Run | Scr Mat Mat Mat Distress Signals . | . . . . Communications Jammed . | . . . . Distress Signals . | . . . . Times Spotted 45 | . 6 24 15 Peak Tracking Total 16 | . 6 16 9 Tactical Retreats 5 | . . 2 3 Traps | -11 -10 -9 -8 ------- Run | Scr Mat Mat Mat Traps Triggered 1 | . 1 . . Indirectly . | . . . . Trap Hack Attempts . | . . . . Triggered . | . . . . Disarmed . | . . . . Reprogrammed . | . . . . Reused . | . . . . Traps Extracted . | . . . . Installed . | . . . . Triggered . | . . . . Machines | -11 -10 -9 -8 ---------- Run | Scr Mat Mat Mat Machines Disabled . | . . . . Max in Single Turn . | . . . . Machines Sabotaged . | . . . . Garrisons Compromised . | . . . . Overloaded Fab Kills . | . . . . Hacking | -11 -10 -9 -8 --------- Run | Scr Mat Mat Mat Machines Accessed 5 | . 3 1 1 Terminals 5 | . 3 1 1 Fabricators . | . . . . Repair Stations . | . . . . Recycling Units . | . . . . Scanalyzers . | . . . . Garrison Access . | . . . . Total Hacks 9 | . 7 1 1 Successful 4 | . 2 1 1 Failed 5 | . 5 . . Catastrophic 1 | . 1 . . Database Lockouts . | . . . . Manual 9 | . 7 1 1 Terminals 9 | . 7 1 1 Fabricators . | . . . . Repair Stations . | . . . . Recycling Units . | . . . . Scanalyzers . | . . . . Garrison Access . | . . . . Terminal Hacks 4 | . 2 1 1 Level Access Points 3 | . 1 1 1 Garrison Status 1 | . 1 . . Fabricator Hacks . | . . . . Repair Station Hacks . | . . . . Recycling Unit Hacks . | . . . . Scanalyzer . | . . . . Garrison Access Hacks . | . . . . Unauthorized Hacks . | . . . . Terminals . | . . . . Fabricators . | . . . . Repair Stations . | . . . . Recycling Units . | . . . . Scanalyzers . | . . . . Garrison Access . | . . . . Data Cores Recovered . | . . . . Used . | . . . . Hacking Detections 2 | . 2 . . Full Trace Events 1 | . 1 . . Feedback Events . | . . . . Feedback Blocked . | . . . . Robot Schematics Acquired . | . . . . Robots Built . | . . . . Authchips . | . . . . Time . | . . . . Total Robot Build Rating . | . . . . Part Schematics Acquired . | . . . . Parts Built . | . . . . Authchips . | . . . . Time . | . . . . Total Part Build Rating . | . . . . Parts Repaired . | . . . . Time . | . . . . Parts Recycled . | . . . . Recycled Matter . | . . . . Retrieved Matter . | . . . . Retrieved Components . | . . . . Parts Scanalyzed . | . . . . Part Schematics Acquired . | . . . . Parts Damaged . | . . . . Bothacking | -11 -10 -9 -8 ------------ Run | Scr Mat Mat Mat Used RIF Installer . | . . . . Robots Hacked . | . . . . Non-combat . | . . . . Combat . | . . . . Robot Hacks Applied . | . . . . Relay Couplers Released . | . . . . Robots Rewired . | . . . . Allies Hacked . | . . . . Hacks Repelled . | . . . . Allies | -11 -10 -9 -8 -------- Run | Scr Mat Mat Mat Total Allies . | . . . . Largest Group . | . . . . Highest-Rated Group . | . . . . Highest-Rated Ally . | . . . . Total Orders . | . . . . Ally Attacks . | . . . . Total Damage . | . . . . Kills . | . . . . Allies Corrupted . | . . . . Allies Melted . | . . . . Intel | -11 -10 -9 -8 ------- Run | Scr Mat Mat Mat Robot Analysis Total . | . . . . Derelict Logs Recovered . | . . . . Drone Launches . | . . . . Drone Recoveries . | . . . . Exploration | -11 -10 -9 -8 ------------- Run | Scr Mat Mat Mat Turns Passed 354 | 9 118 96 131 Spaces Moved 737 | 18 220 239 260 Core 227 | 18 187 . 22 Treads . | . . . . Legs . | . . . . Wheels . | . . . . Hover . | . . . . Flight 510 | . 33 239 238 Fastest Speed 40 | 50 40 40 40 Average Speed 44 | 50 48 40 45 Slowest Speed 100 | 50 50 40 100 Overloaded Moves . | . . . . Propulsion Burnouts . | . . . . Robots Hopped 22 | . 2 9 11 Cave-ins Triggered . | . . . . Exploration Rate (%) 30 | 3 47 37 34 Regions Visited 3 Branch Regions . Pre-discovered Areas . | . . . . Known Exits Taken 3 | 1 1 1 . Unknown Exits Taken . | . . . . Scrap Searched . | . . . . Spaces Dug . | . . . . Terrain Destroyed . | . . . . Melee . | . . . . Projectile . | . . . . AOE . | . . . . Terrain Rammed . | . . . . Walls Destroyed . | . . . . Machines Disabled . | . . . . Actions | -11 -10 -9 -8 --------- Run | Scr Mat Mat Mat Total 726 | 17 223 229 257 Wait . | . . . . Move 693 | 17 216 221 239 Hop 19 | . 1 8 10 Pick Up . | . . . . Fast Attach 3 | . 2 . 1 Attach . | . . . . Detach . | . . . . Swap . | . . . . Drop . | . . . . Fire 5 | . . . 5 Melee 4 | . 4 . . Ram 2 | . . . 2 Kick . | . . . . Crush . | . . . . Escape Stasis . | . . . . Rewire . | . . . . Trap . | . . . . Miscellaneous . | . . . . Route ------- -11/Scrapyard -10/Materials (discovered 4 exits: *Mat x3 / *Min) -9/Materials (discovered 4 exits: *Mat x3 / *Min) -8/Materials (discovered 3 exits: Fac x3) History --------- Turn | Location | Event 3 | -11/Scrapyard | Identified exit to Materials 3 | -11/Scrapyard | Discovered exit to Materials (range 15) 10 | -11/Scrapyard | Entered Materials 24 | -10/Materials | Identified exit to Mines 24 | -10/Materials | Discovered exit to Mines (range 13) 67 | -10/Materials | Identified exit to Materials 128 | -10/Materials | Entered another Materials area 130 | -9/Materials | Reached level 2 130 | -9/Materials | Reached level 3 142 | -9/Materials | Identified exit to Materials 182 | -9/Materials | Identified exit to Mines 182 | -9/Materials | Discovered exit to Mines (range 12) 224 | -9/Materials | Entered another Materials area 226 | -8/Materials | Reached level 4 226 | -8/Materials | Reached level 5 226 | -8/Materials | Reached level 6 277 | -8/Materials | Identified exit to Factory 302 | -8/Materials | Core integrity fell below 50% 308 | -8/Materials | Reached level 7 315 | -8/Materials | Build established: Hacker-Mutant 355 | -8/Materials | Self-destructed Last Messages --------------- (12,85) (83,94) Map updated. 00302_ ALERT: Hostiles spotted, dispatching reinforcements to Terminal M002. 00306_ S-10 Pest suffers critical hit (Burn). 00306_ S-10 Pest destroyed. 00308_ Slug penetrates Wall. 00308_ Reached level 7. 00308_ S-10 Pest destroyed. 00310_ Acquired 21 matter. 00311_ Slug penetrates Wall. 00312_ R-06 Scavenger collects Flight Unit. 00331_ Penetrated by Slug. 00331_ Flight Unit destroyed. 00332_ Slammed into R-06 Scavenger. 00332_ K-01 Serf collects debris. 00334_ Slug penetrates Wall. 00338_ Penetrated by Slug. 00354_ Slammed into U-05 Engineer. Map ----- +----------------------------------------------------+ | ???????????????????????????# #???????????? | | ?????????????????"?????????# #???????????? | | ?????????????????"?????????# #???????????? | | ????????????????? ?????????# [ #???????????? | | ????????????????? ?????????# #???????????? | | ????????????????#+#??#+#???# #???????????? | | ????????????????# #??# #???# #???????????? | | ????????????????# #??# #???#####+#####???????????? | | ????????????????# #??# #??????# #?????????????? | | ????????????????# #### ######## #?????????????? | | ????????????????# #?????????????? | | ????????????????# ############ #?????????????? | | ????????????????#%########???# #?????????????? | | ????????????????# #! [ #???# #?????????????? | | ????????????????# # #???# #?????????????? | | ????????????????# # """ #???# #?????????????? | | ????????????????# # "R #???# #?????????????? | | ????########????# # """ #???# ????????????? | | ????# #????# #? ????# ???????????? | | ????# """ ###### ####+#?????# """??????????? | | ????#[ "T" + #?????# """""?????????? | | ????# # #### #### #?????# """???????????? | | ????# # #??# #??# #?????# "?????????????? | | ????# ! #?#??# #??# #?????# ?????????????? | | ????########??###+#### ####### ????????? | | ??????????????#! Y u @m = [ ????????? | | ??????????????# # ###########+??????????????? | | ??????????????#! "" # #????#????????????????????? | | ??????????????# S"" # #??! #????????????????????? | | ?????????????## "" # # !! #????????????????????? | | ?????????????# + + #????????????????????? | | ???????#########+##### # #????????????????????? | | ???????#! # ##### #?? #????????????????????? | | ???????# """" + #????#????????????????????? | | ???????# """" #########?????????????????????????? | | ???????# """" #?????????????????????????????????? | | ???????#! #?????????????????????????????????? | | ???????#########?????????????????????????????????? | | ?????????????????????????????????????????????????? | | | | | | | | | | | | | | | | | | | | | | | +----------------------------------------------------+ Best States ------------- Heat Dissipation 25 Energy Generation 5 Energy Capacity 100 Matter Stores 105 Matter Capacity 300 Sight Range 16 Terrain Scan Density 10 Resistance: KI 35 Resistance: TH 35 Resistance: EX 35 Resistance: EM 35 Resistance: I 35 Resistance: S 35 Resistance: P 35 Evasion (%) 62 Offensive Hacking 20 Item Schematics ----------------- None Robot Schematics ------------------ None Fabricated ------------ Nothing Alien Tech Used ----------------- None Achievements -------------- None Challenges ------------ None RPGLIKE | -11 -10 -9 -8 --------- Run | Scr Mat Mat Mat Levels Raised 6 | . . 2 4 XP Earned 15317 | 6000 135 3803 5379 Upgrades . | . . . . Protomatter Created 14 | . . . 14 Protomatter Decayed . | . . . . Game ------ Seed EtherialPulseLeg Manual? 0 Play Time 00:06:41 Cumulative 341.4 hours Start 2021.10.27 @ 14:12:35 End 2021.10.27 @ 14:17:31 Sessions 1 Manual Loads 0 Difficulty Explorer Special Mode Winter2019/RPGLIKE Game No. 108 Rogue 0 Adventurer 0 Explorer 108 Win Type - Total 26 Types 15/3/1/1/1/2/1/2/0 Lore% 71 Gallery% 86 Achievement% 81 Wizard Run 0 Options --------- ASCII 1 Keyboard 0 Movement Vi Keybinds 0 Fullscreen 2 Font 18/X11Bold Map View 76x50 Tactical HUD 1 Map Filters NONE Filters NONE Steam 1 RUN: 348114e5-6106-4b04-8ccf-04d42b3ac22b